[Event "NJSK 2024 Cm"]
[Site "Groningen, Netherlands"]
[Date "2024.04.28"]
[Round "2.3"]
[White "Luong, Thao"]
[Black "Ganeshram, Niranjana"]
[Result "1-0"]
[TimeControl "90min/40moves + 30min + 30sec/move"]
[WhiteElo "1687"]
[BlackElo "1566"]

1. e4 {[%clk 01:30:59]} e5 {[%clk 01:30:57]} {[%emt 00:00:04]} 2. Nf3 {[%clk
01:31:25]} {[%emt 00:00:04]} Nc6 {[%clk 01:31:23]} {[%emt 00:00:04]} 3. Bc4
{[%clk 01:31:52]} {[%emt 00:00:03]} Bc5 {[%clk 01:31:48]} {[%emt 00:00:05]} 4.
c3 {[%clk 01:32:07]} {[%emt 00:00:15]} Nf6 {[%clk 01:32:12]} {[%emt 00:00:06]}
5. d4 {[%clk 01:32:32]} {[%emt 00:00:05]} exd4 {[%clk 01:32:35]} {[%emt
00:00:06]} 6. cxd4 {[%clk 01:32:57]} {[%emt 00:00:06]} Bb4+ {[%clk 01:33:00]}
{[%emt 00:00:06]} 7. Nc3 {[%clk 01:33:20]} {[%emt 00:00:06]} Nxe4 {[%clk
01:33:10]} {[%emt 00:00:19]} 8. O-O {[%clk 01:33:44]} {[%emt 00:00:06]} Nxc3
{[%clk 01:33:09]} {[%emt 00:00:32]} 9. bxc3 {[%clk 01:34:08]} {[%emt 00:00:06]}
d5 {[%clk 01:33:22]} {[%emt 00:00:17]} 10. cxb4 {[%clk 01:31:53]} {[%emt
00:02:44]} dxc4 {[%clk 01:33:46]} {[%emt 00:00:06]} 11. Re1+ {[%clk 01:31:00]}
{[%emt 00:01:22]} Ne7 {[%clk 01:33:29]} {[%emt 00:00:49]} 12. Ba3 {[%clk
01:29:27]} {[%emt 00:02:03]} O-O {[%clk 01:33:01]} {[%emt 00:00:58]} 13. b5
{[%clk 01:27:40]} {[%emt 00:02:16]} Re8 {[%clk 01:30:26]} {[%emt 00:03:05]} 14.
Qe2 {[%clk 01:13:37]} {[%emt 00:14:32]} Be6 {[%clk 01:29:53]} {[%emt 00:01:04]}
15. Ng5 {[%clk 01:09:55]} {[%emt 00:04:12]} Ng6 {[%clk 01:29:02]} {[%emt
00:01:22]} 16. Nxe6 {[%clk 01:08:32]} {[%emt 00:01:53]} Rxe6 {[%clk 01:28:57]}
{[%emt 00:00:34]} 17. Qxc4 {[%clk 01:08:26]} {[%emt 00:00:36]} Rf6 {[%clk
01:24:21]} {[%emt 00:05:07]} 18. Re4 {[%clk 01:00:56]} {[%emt 00:07:59]} a6
{[%clk 01:21:33]} {[%emt 00:03:18]} 19. Rae1 {[%clk 00:56:59]} {[%emt
00:04:26]} axb5 {[%clk 01:06:04]} {[%emt 00:16:01]} 20. Qxb5 {[%clk 00:51:06]}
{[%emt 00:06:23]} Re6 {[%clk 00:56:48]} {[%emt 00:09:45]} 21. Rxe6 {[%clk
00:44:04]} {[%emt 00:07:31]} fxe6 {[%clk 00:56:54]} {[%emt 00:00:25]} 22. Rxe6
{[%clk 00:42:12]} {[%emt 00:02:22]} Rxa3 {[%clk 00:55:50]} {[%emt 00:01:36]} 23.
Re8+ {[%clk 00:42:24]} {[%emt 00:00:16]} Qxe8 {[%clk 00:55:52]} {[%emt
00:00:28]} 24. Qxe8+ {[%clk 00:42:51]} {[%emt 00:00:03]} Nf8 {[%clk 00:56:16]}
{[%emt 00:00:07]} 25. Qb5 {[%clk 00:42:13]} {[%emt 00:01:05]} Ra7 {[%clk
00:53:27]} {[%emt 00:03:21]} 26. Qc4+ {[%clk 00:41:50]} {[%emt 00:00:52]} Kh8
{[%clk 00:53:46]} {[%emt 00:00:13]} 27. Qf7 {[%clk 00:40:17]} {[%emt 00:02:00]}
Ra8 {[%clk 00:53:52]} {[%emt 00:00:27]} 28. h3 {[%clk 00:40:00]} {[%emt
00:00:45]} h6 {[%clk 00:54:08]} {[%emt 00:00:16]} 29. Qxc7 {[%clk 00:39:42]}
{[%emt 00:00:48]} Kh7 {[%clk 00:53:49]} {[%emt 00:00:49]} 30. Qxb7 {[%clk
00:39:55]} {[%emt 00:00:16]} Rd8 {[%clk 00:52:43]} {[%emt 00:01:36]} 31. d5
{[%clk 00:38:24]} {[%emt 00:02:01]} Ng6 {[%clk 00:52:51]} {[%emt 00:00:22]} 32.
g3 {[%clk 00:37:11]} {[%emt 00:01:43]} Rd6 {[%clk 00:53:03]} {[%emt 00:00:18]}
33. a4 {[%clk 00:36:45]} {[%emt 00:00:56]} Ne5 {[%clk 00:52:10]} {[%emt
00:01:24]} 34. a5 {[%clk 00:35:29]} {[%emt 00:01:46]} Rd8 {[%clk 00:51:21]}
{[%emt 00:01:18]} 35. d6 {[%clk 00:35:08]} {[%emt 00:00:51]} Rxd6 {[%clk
00:51:07]} {[%emt 00:00:45]} 36. a6 {[%clk 00:32:59]} {[%emt 00:02:39]} Rd7
{[%clk 00:50:33]} {[%emt 00:01:04]} 37. Qb6 {[%clk 00:31:29]} {[%emt 00:01:56]}
Nf3+ {[%clk 00:49:17]} {[%emt 00:01:50]} 38. Kf1 {[%clk 00:30:41]} {[%emt
00:01:16]} Rd2 {[%clk 00:48:35]} {[%emt 00:01:13]} 39. Qb1+ {[%clk 00:29:42]}
{[%emt 00:01:29]} Kh8 {[%clk 00:48:28]} {[%emt 00:00:36]} 40. a7 {[%clk
00:29:37]} {[%emt 00:00:37]} Rd8 {[%clk 00:47:38]} {[%emt 00:01:20]} 41. Qb8
{[%clk 00:29:49]} {[%emt 00:00:18]} Nd2+ {[%clk 00:47:50]} {[%emt 00:00:17]} 42.
Ke2 {[%clk 00:30:00]} {[%emt 00:00:19]} Rxb8 {[%clk 00:47:38]} {[%emt
00:00:43]} 43. axb8=Q+ {[%clk 00:30:17]} {[%emt 00:00:12]} Kh7 {[%clk
00:48:03]} {[%emt 00:00:06]} 44. Kxd2 {[%clk 00:30:23]} {[%emt 00:00:24]} g6
{[%clk 00:48:17]} {[%emt 00:00:16]} 45. Qc7+ {[%clk 00:30:25]} {[%emt
00:00:27]} Kg8 {[%clk 00:48:39]} {[%emt 00:00:08]} 46. Qe7 {[%clk 00:30:36]}
{[%emt 00:00:17]} g5 {[%clk 00:48:51]} {[%emt 00:00:21]} 47. Ke3 {[%clk
00:30:57]} {[%emt 00:00:09]} g4 {[%clk 00:49:12]} {[%emt 00:00:09]} 48. hxg4
{[%clk 00:31:10]} {[%emt 00:00:17]} h5 {[%clk 00:49:38]} {[%emt 00:00:04]} 49.
gxh5 {[%clk 00:31:24]} {[%emt 00:00:16]} Kh8 {[%clk 00:50:04]} {[%emt
00:00:04]} 50. h6 {[%clk 00:31:44]} {[%emt 00:00:09]} 1-0

[Event "NJSK 2024 Cm"]
[Site "Groningen, Netherlands"]
[Date "2024.04.28"]
[Round "2.4"]
[White "Barbier, Emma"]
[Black "Hardeman, Imara"]
[Result "0-1"]
[TimeControl "90min/40moves + 30min + 30sec/move"]
[WhiteElo "1473"]
[BlackElo "1676"]

1. e4 {[%clk 01:30:58]} {[%emt 00:00:01]} d5 {[%clk 01:30:58]} {[%emt
00:00:03]} 2. Nc3 {[%clk 01:31:18]} {[%emt 00:00:10]} d4 {[%clk 01:31:11]}
{[%emt 00:00:16]} 3. Nce2 {[%clk 01:31:40]} {[%emt 00:00:08]} e5 {[%clk
01:31:31]} {[%emt 00:00:11]} 4. Nf3 {[%clk 01:31:52]} {[%emt 00:00:18]} Nc6
{[%clk 01:31:57]} {[%emt 00:00:04]} 5. Ng3 {[%clk 01:32:10]} {[%emt 00:00:11]}
a6 {[%clk 01:31:05]} {[%emt 00:01:23]} 6. h3 {[%clk 01:32:06]} {[%emt
00:00:33]} Be6 {[%clk 01:30:05]} {[%emt 00:01:30]} 7. Be2 {[%clk 01:29:47]}
{[%emt 00:02:49]} Be7 {[%clk 01:26:00]} {[%emt 00:04:36]} 8. d3 {[%clk
01:28:15]} {[%emt 00:02:02]} Bb4+ {[%clk 01:24:05]} {[%emt 00:02:25]} 9. Bd2
{[%clk 01:28:06]} {[%emt 00:00:39]} Bxd2+ {[%clk 01:24:26]} {[%emt 00:00:09]}
10. Qxd2 {[%clk 01:28:29]} {[%emt 00:00:06]} Nge7 {[%clk 01:24:45]} {[%emt
00:00:11]} 11. O-O {[%clk 01:26:16]} {[%emt 00:02:43]} O-O {[%clk 01:24:42]}
{[%emt 00:00:33]} 12. a3 {[%clk 01:26:00]} {[%emt 00:00:48]} Ng6 {[%clk
01:22:40]} {[%emt 00:02:31]} 13. Rac1 {[%clk 01:23:25]} {[%emt 00:03:04]} Nce7
{[%clk 01:14:13]} {[%emt 00:08:58]} 14. Qa5 {[%clk 01:04:59]} {[%emt 00:18:55]}
b6 {[%clk 01:09:59]} {[%emt 00:04:45]} 15. Qd2 {[%clk 01:04:08]} {[%emt
00:01:20]} c5 {[%clk 01:08:15]} {[%emt 00:02:15]} 16. c3 {[%clk 01:00:00]}
{[%emt 00:04:36]} Rc8 {[%clk 01:03:37]} {[%emt 00:05:09]} 17. Ng5 {[%clk
00:57:13]} {[%emt 00:03:18]} Bd7 {[%clk 01:02:10]} {[%emt 00:01:57]} 18. c4
{[%clk 00:48:28]} {[%emt 00:09:14]} Nf4 {[%clk 00:59:31]} {[%emt 00:03:10]} 19.
b3 {[%clk 00:46:03]} {[%emt 00:02:55]} Neg6 {[%clk 00:57:56]} {[%emt 00:02:05]}
20. a4 {[%clk 00:45:51]} {[%emt 00:00:42]} Qxg5 {[%clk 00:57:49]} {[%emt
00:00:37]} 21. Qb2 {[%clk 00:43:22]} {[%emt 00:02:59]} Nxe2+ {[%clk 00:56:46]}
{[%emt 00:01:33]} 22. Qxe2 {[%clk 00:43:38]} {[%emt 00:00:13]} Nf4 {[%clk
00:56:38]} {[%emt 00:00:39]} 23. Qf3 {[%clk 00:43:36]} {[%emt 00:00:30]} Qf6
{[%clk 00:54:35]} {[%emt 00:02:34]} 24. Kh2 {[%clk 00:43:02]} {[%emt 00:01:04]}
Rfe8 {[%clk 00:52:50]} {[%emt 00:02:16]} 25. Ra1 {[%clk 00:41:00]} {[%emt
00:02:31]} a5 {[%clk 00:52:34]} {[%emt 00:00:46]} 26. Rad1 {[%clk 00:41:06]}
{[%emt 00:00:24]} Qh4 {[%clk 00:49:06]} {[%emt 00:03:58]} 27. Nf5 {[%clk
00:40:49]} {[%emt 00:00:47]} Bxf5 {[%clk 00:47:57]} {[%emt 00:01:38]} 28. exf5
{[%clk 00:41:07]} {[%emt 00:00:12]} Qh5 {[%clk 00:44:55]} {[%emt 00:03:32]} 29.
Qe4 {[%clk 00:40:51]} {[%emt 00:00:47]} Qg5 {[%clk 00:42:36]} {[%emt 00:02:48]}
30. Rg1 {[%clk 00:37:24]} {[%emt 00:03:57]} Nh5 {[%clk 00:41:16]} {[%emt
00:01:50]} 31. Rde1 {[%clk 00:35:15]} {[%emt 00:02:39]} Nf6 {[%emt 00:02:00]}
32. Qf3 {[%clk 00:34:52]} {[%emt 00:00:52]} Nd7 {[%clk 00:39:21]} {[%emt
00:00:57]} 33. Re2 {[%clk 00:35:00]} {[%emt 00:00:22]} Qf4+ {[%clk 00:38:46]}
{[%emt 00:01:04]} 34. Qxf4 {[%clk 00:35:08]} {[%emt 00:00:22]} exf4 {[%clk
00:39:12]} {[%emt 00:00:05]} 35. Rge1 {[%clk 00:35:16]} {[%emt 00:00:22]} Nf6
{[%clk 00:39:23]} {[%emt 00:00:19]} 36. g4 {[%clk 00:35:32]} {[%emt 00:00:13]}
fxg3+ {[%clk 00:39:17]} {[%emt 00:00:38]} 37. fxg3 {[%clk 00:35:52]} {[%emt
00:00:09]} Rxe2+ {[%clk 00:39:36]} {[%emt 00:00:10]} 38. Rxe2 {[%clk 00:36:13]}
{[%emt 00:00:09]} Re8 {[%clk 00:40:03]} {[%emt 00:00:03]} 39. Rf2 {[%clk
00:36:31]} {[%emt 00:00:12]} Nd7 {[%clk 00:40:07]} {[%emt 00:00:26]} 40. g4
{[%clk 00:36:42]} {[%emt 00:00:19]} Ne5 {[%clk 00:40:15]} {[%emt 00:00:23]} 41.
Rd2 {[%clk 00:36:43]} {[%emt 00:00:28]} Nf3+ {[%clk 00:40:34]} {[%emt
00:00:11]} 0-1

[Event "NJSK 2024 Cm"]
[Site "Groningen, Netherlands"]
[Date "2024.04.28"]
[Round "2.5"]
[White "Zhang, Jinchen"]
[Black "Esvelt, Klio"]
[Result "1/2-1/2"]
[TimeControl "90min/40moves + 30min + 30sec/move"]
[WhiteElo "1348"]
[BlackElo "1353"]

1. d4 {[%clk 01:30:57]} {[%emt 00:00:02]} d5 {[%clk 01:30:58]} {[%emt
00:00:03]} 2. c4 {[%clk 01:31:14]} {[%emt 00:00:13]} c6 {[%clk 01:31:21]}
{[%emt 00:00:07]} 3. Nc3 {[%clk 01:31:20]} {[%emt 00:00:24]} Nf6 {[%clk
01:31:46]} {[%emt 00:00:05]} 4. Nf3 {[%clk 01:31:14]} {[%emt 00:00:36]} Bf5
{[%clk 01:31:44]} {[%emt 00:00:31]} 5. Bf4 {[%clk 01:30:52]} {[%emt 00:00:53]}
Nbd7 {[%clk 01:31:28]} {[%emt 00:00:47]} 6. e3 {[%clk 01:30:26]} {[%emt
00:00:55]} e6 {[%clk 01:31:12]} {[%emt 00:00:39]} 7. a3 {[%clk 01:30:23]}
{[%emt 00:00:40]} Nb6 {[%clk 01:31:19]} {[%emt 00:00:16]} 8. b3 {[%clk
01:29:48]} {[%emt 00:01:12]} Ne4 {[%clk 01:30:14]} {[%emt 00:01:34]} 9. Nxe4
{[%clk 01:29:34]} {[%emt 00:00:44]} Bxe4 {[%clk 01:30:38]} {[%emt 00:00:07]} 10.
Bd3 {[%clk 01:28:31]} {[%emt 00:01:32]} Bxd3 {[%clk 01:29:22]} {[%emt
00:01:47]} 11. Qxd3 {[%clk 01:28:41]} {[%emt 00:00:20]} Be7 {[%clk 01:29:23]}
{[%emt 00:00:21]} 12. h4 {[%clk 01:26:23]} {[%emt 00:02:56]} a5 {[%clk
01:27:53]} {[%emt 00:01:59]} 13. Bg3 {[%clk 01:24:10]} {[%emt 00:02:44]} a4
{[%clk 01:27:14]} {[%emt 00:01:09]} 14. c5 {[%clk 01:23:19]} {[%emt 00:01:21]}
Nd7 {[%clk 01:27:31]} {[%emt 00:00:10]} 15. b4 {[%clk 01:23:14]} {[%emt
00:00:38]} Nf6 {[%clk 01:26:08]} {[%emt 00:01:50]} 16. Ne5 {[%clk 01:22:30]}
{[%emt 00:01:18]} Ne4 {[%clk 01:26:05]} {[%emt 00:00:31]} 17. Nf3 {[%clk
01:20:34]} {[%emt 00:02:27]} b5 {[%clk 01:24:31]} {[%emt 00:02:04]} 18. Nd2
{[%clk 01:20:41]} {[%emt 00:00:23]} f5 {[%clk 01:24:05]} {[%emt 00:00:46]} 19.
Nxe4 {[%clk 01:20:07]} {[%emt 00:01:14]} fxe4 {[%clk 01:23:59]} {[%emt
00:00:36]} 20. Qe2 {[%clk 01:19:47]} {[%emt 00:00:50]} O-O {[%clk 01:23:47]}
{[%emt 00:00:42]} 21. Qg4 {[%clk 01:17:27]} {[%emt 00:02:50]} Rf6 {[%clk
01:21:55]} {[%emt 00:02:11]} 22. h5 {[%clk 01:16:33]} {[%emt 00:01:36]} Qd7
{[%clk 01:21:41]} {[%emt 00:00:40]} 23. Be5 {[%clk 01:16:39]} {[%emt 00:00:26]}
Raf8 {[%clk 01:20:14]} {[%emt 00:01:55]} 24. Bxf6 {[%clk 01:16:35]} {[%emt
00:00:37]} Bxf6 {[%clk 01:20:25]} {[%emt 00:00:19]} 25. O-O-O {[%clk 01:16:13]}
{[%emt 00:00:52]} Qe7 {[%clk 01:20:15]} {[%emt 00:00:14]} 26. f4 {[%clk
01:15:02]} {[%emt 00:02:07]} exf3 {[%clk 01:20:20]} {[%emt 00:00:25]} 27. gxf3
{[%clk 01:15:17]} {[%emt 00:00:15]} e5 {[%clk 01:20:28]} {[%emt 00:00:22]} 28.
Qg1 {[%clk 01:12:06]} {[%emt 00:03:42]} Bg5 {[%clk 01:19:13]} {[%emt 00:01:44]}
29. dxe5 {[%clk 01:09:23]} {[%emt 00:03:13]} Rxf3 {[%clk 01:19:05]} {[%emt
00:00:38]} 30. Kb1 {[%clk 01:08:27]} {[%emt 00:01:26]} Qxe5 {[%clk 01:18:34]}
{[%emt 00:01:00]} 31. Qg4 {[%clk 01:07:36]} {[%emt 00:01:22]} Rf8 {[%clk
01:17:59]} {[%emt 00:00:46]} 32. Rhf1 {[%clk 01:07:36]} {[%emt 00:00:49]} Bf6
{[%clk 01:18:07]} {[%emt 00:00:18]} 33. Qd4 {[%clk 01:06:33]} {[%emt 00:01:37]}
Qxh5 {[%clk 01:18:08]} {[%emt 00:00:22]} 34. Qd2 {[%clk 01:05:56]} {[%emt
00:01:14]} Qe5 {[%clk 01:17:49]} {[%emt 00:00:35]} 35. Qd4 {[%clk 01:05:43]}
{[%emt 00:00:58]} Qh5 {[%clk 01:16:50]} {[%emt 00:00:56]} 36. Qd3 {[%clk
01:05:25]} {[%emt 00:01:21]} Qe5 {[%clk 01:16:26]} {[%emt 00:00:18]} 1/2-1/2

[Event "NJSK 2024 Cm"]
[Site "Groningen, Netherlands"]
[Date "2024.04.28"]
[Round "2.6"]
[White "Vermeulen, Ilona"]
[Black "Schipper, Sarah"]
[Result "1/2-1/2"]
[TimeControl "90min/40moves + 30min + 30sec/move"]
[WhiteElo "1427"]
[BlackElo "1238"]

1. e4 {[%clk 01:30:59]} {[%emt 00:00:02]} e5 {[%clk 01:30:57]} {[%emt
00:00:04]} 2. Nf3 {[%clk 01:31:19]} {[%emt 00:00:09]} Nc6 {[%clk 01:31:21]}
{[%emt 00:00:06]} 3. d4 {[%clk 01:31:01]} {[%emt 00:00:48]} exd4 {[%clk
01:31:36]} {[%emt 00:00:14]} 4. Nxd4 {[%clk 01:30:47]} {[%emt 00:00:45]} Nxd4
{[%clk 01:31:02]} {[%emt 00:01:04]} 5. Qxd4 {[%clk 01:30:54]} {[%emt 00:00:22]}
Ne7 {[%clk 01:31:17]} {[%emt 00:00:16]} 6. Nc3 {[%clk 01:30:34]} {[%emt
00:00:51]} Nc6 {[%clk 01:31:04]} {[%emt 00:00:43]} 7. Qd1 {[%clk 01:27:09]}
{[%emt 00:03:55]} Bc5 {[%clk 01:29:44]} {[%emt 00:01:50]} 8. Be2 {[%clk
01:22:14]} {[%emt 00:05:25]} d6 {[%clk 01:22:57]} {[%emt 00:07:18]} 9. Bb5
{[%clk 01:19:47]} {[%emt 00:02:56]} Bd7 {[%clk 01:19:47]} {[%emt 00:03:41]} 10.
Bxc6 {[%clk 01:18:26]} {[%emt 00:01:50]} Bxc6 {[%clk 01:19:51]} {[%emt
00:00:25]} 11. Nd5 {[%clk 01:13:51]} {[%emt 00:05:05]} Bxd5 {[%clk 01:19:33]}
{[%emt 00:00:48]} 12. exd5 {[%clk 01:11:15]} {[%emt 00:03:07]} Qe7+ {[%clk
01:19:20]} {[%emt 00:00:43]} 13. Qe2 {[%clk 01:10:44]} {[%emt 00:01:01]} Qxe2+
{[%clk 01:19:38]} {[%emt 00:00:11]} 14. Kxe2 {[%clk 01:11:09]} {[%emt
00:00:06]} O-O {[%clk 01:19:39]} {[%emt 00:00:29]} 15. Be3 {[%clk 01:06:14]}
{[%emt 00:05:25]} Rfe8 {[%clk 01:18:11]} {[%emt 00:01:58]} 16. Rhe1 {[%clk
01:05:57]} {[%emt 00:00:47]} h6 {[%clk 01:18:08]} {[%emt 00:00:33]} 17. Kd2
{[%clk 01:03:22]} {[%emt 00:03:04]} Bxe3+ {[%clk 01:15:19]} {[%emt 00:03:19]}
18. Rxe3 {[%clk 01:03:27]} {[%emt 00:00:25]} Rxe3 {[%clk 01:13:03]} {[%emt
00:02:46]} 19. fxe3 {[%clk 01:03:24]} {[%emt 00:00:34]} f5 {[%clk 01:13:07]}
{[%emt 00:00:26]} 20. Rf1 {[%clk 01:02:29]} {[%emt 00:01:25]} g6 {[%clk
01:09:17]} {[%emt 00:04:20]} 21. h3 {[%clk 00:53:20]} {[%emt 00:09:38]} c6
{[%clk 01:06:08]} {[%emt 00:03:40]} 22. dxc6 {[%clk 00:53:05]} {[%emt
00:00:45]} bxc6 {[%clk 01:06:28]} {[%emt 00:00:10]} 23. Kd3 {[%clk 00:51:11]}
{[%emt 00:02:23]} d5 {[%clk 01:04:43]} {[%emt 00:02:16]} 24. g4 {[%clk
00:46:24]} {[%emt 00:05:17]} fxg4 {[%clk 01:03:41]} {[%emt 00:01:32]} 25. hxg4
{[%clk 00:46:39]} {[%emt 00:00:15]} Re8 {[%clk 01:02:33]} {[%emt 00:01:36]} 26.
Rg1 {[%clk 00:43:08]} {[%emt 00:04:03]} c5 {[%clk 00:59:35]} {[%emt 00:03:27]}
27. b3 {[%clk 00:41:46]} {[%emt 00:01:53]} Re5 {[%clk 00:57:59]} {[%emt
00:02:06]} 28. c4 {[%clk 00:40:09]} {[%emt 00:02:07]} Kf7 {[%clk 00:54:46]}
{[%emt 00:03:42]} 29. cxd5 {[%clk 00:39:19]} {[%emt 00:01:21]} Rxd5+ {[%clk
00:54:58]} {[%emt 00:00:18]} 30. Ke4 {[%clk 00:38:24]} {[%emt 00:01:24]} Rg5
{[%clk 00:54:37]} {[%emt 00:00:51]} 31. Kf4 {[%clk 00:37:49]} {[%emt 00:01:05]}
Kf6 {[%clk 00:54:55]} {[%emt 00:00:12]} 32. Rd1 {[%clk 00:35:10]} {[%emt
00:03:08]} Ke6 {[%clk 00:52:15]} {[%emt 00:03:10]} 33. Rd8 {[%clk 00:33:16]}
{[%emt 00:02:24]} Rd5 {[%clk 00:46:36]} {[%emt 00:06:09]} 34. Rxd5 {[%clk
00:32:19]} {[%emt 00:01:27]} Kxd5 {[%clk 00:46:49]} {[%emt 00:00:17]} 35. a3
{[%clk 00:29:49]} {[%emt 00:03:01]} a5 {[%clk 00:46:39]} {[%emt 00:00:40]} 36.
Kf3 {[%clk 00:28:02]} {[%emt 00:02:16]} c4 {[%clk 00:44:22]} {[%emt 00:02:47]}
37. bxc4+ {[%clk 00:28:24]} {[%emt 00:00:09]} Kxc4 {[%clk 00:44:48]} {[%emt
00:00:04]} 38. e4 {[%clk 00:28:41]} {[%emt 00:00:13]} Kd4 {[%clk 00:41:38]}
{[%emt 00:03:39]} 39. Kf4 {[%clk 00:27:05]} {[%emt 00:02:07]} a4 {[%clk
00:28:39]} {[%emt 00:13:29]} 40. Kf3 {[%clk 00:25:11]} {[%emt 00:02:24]} h5
{[%clk 00:27:54]} {[%emt 00:01:14]} 41. gxh5 {[%clk 00:25:20]} {[%emt
00:00:22]} gxh5 {[%clk 00:25:24]} {[%emt 00:03:00]} 42. Kf4 {[%clk 00:25:12]}
{[%emt 00:00:38]} h4 {[%clk 00:23:51]} {[%emt 00:02:02]} 43. e5 {[%clk
00:24:19]} {[%emt 00:01:23]} Kd5 {[%clk 00:21:50]} {[%emt 00:02:31]} 44. Kf5
{[%clk 00:23:45]} {[%emt 00:01:04]} h3 {[%clk 00:20:38]} {[%emt 00:01:42]} 45.
e6 {[%clk 00:24:08]} {[%emt 00:00:08]} h2 {[%clk 00:18:32]} {[%emt 00:02:35]}
46. e7 {[%clk 00:24:30]} {[%emt 00:00:08]} h1=Q {[%clk 00:18:47]} {[%emt
00:00:15]} 47. e8=Q {[%clk 00:24:39]} {[%emt 00:00:22]} Qf3 {[%clk 00:19:08]}
{[%emt 00:00:08]} 48. Kg5 {[%clk 00:24:11]} {[%emt 00:00:58]} Qg2 {[%clk
00:18:58]} {[%emt 00:00:41]} 49. Kh6 {[%clk 00:23:46]} {[%emt 00:00:54]} Qh2+
{[%clk 00:15:30]} {[%emt 00:03:59]} 50. Kg6 {[%clk 00:23:30]} {[%emt 00:00:46]}
Qd6+ {[%clk 00:13:51]} {[%emt 00:02:08]} 51. Kf7 {[%clk 00:22:16]} {[%emt
00:01:44]} Qf4+ {[%clk 00:09:22]} {[%emt 00:04:59]} 52. Kg8 {[%clk 00:21:20]}
{[%emt 00:01:26]} Qg4+ {[%clk 00:07:43]} {[%emt 00:02:09]} 53. Kh8 {[%clk
00:19:10]} {[%emt 00:02:40]} Qh3+ {[%clk 00:06:09]} {[%emt 00:02:05]} 54. Kg7
{[%clk 00:18:59]} {[%emt 00:00:40]} Qg3+ {[%clk 00:03:50]} {[%emt 00:02:49]} 55.
Kh6 {[%clk 00:18:03]} {[%emt 00:01:26]} Qxa3 {[%clk 00:02:16]} {[%emt
00:02:04]} 56. Qf7+ {[%clk 00:17:36]} {[%emt 00:00:57]} Kd4 {[%clk 00:01:38]}
{[%emt 00:01:08]} 57. Qf4+ {[%clk 00:18:01]} {[%emt 00:00:05]} 1/2-1/2